Cogmind - Beta 14 @@@ ROGUE MODE // 2024.08.09 @ 20:27:58 Player: opdo Result: Destroyed by PQ-VHF(R) with Subdweller Machine Gun Performance ------------- Evolutions (0) 0 Regions Visited (2) 400 Robots Destroyed (17) 85 Value Destroyed (394) 394 Prototype IDs (0) 0 Alien Tech Used (0) 0 Bonus (0) 0 TOTAL SCORE: 879 Bonus ------- None Cogmind --------- Core Integrity 0/250 Matter 269/300 Energy 61/100 System Corruption 0% Temperature Cool (0) Movement Rolling (95) Ox1 Location -10/Subcaves Parts ------- > --- POWER (1) -------- (None) > --- PROPULSION (2) --- Wheel > --- UTILITY (2) ------ Small Storage Unit Makeshift Light Armor Plating > --- WEAPON (2) ------- Subdweller Machine Gun > --- INVENTORY (8) ---- Light Ion Engine Hacking Suite Peak State ------------ > --- POWER ------------ (None) > --- PROPULSION ------- Aluminum Leg Aluminum Leg > --- UTILITY ---------- Small Storage Unit Makeshift Light Armor Plating > --- WEAPON ----------- Light Assault Rifle Light Assault Rifle > --- INVENTORY -------- Light Ion Engine Wheel Hacking Suite Mining Laser [Rating: 9] Favorites ----------- Power Ion Engine Engine Ion Engine Propulsion Aluminum Leg Leg Aluminum Leg Wheel Wheel Utility Small Storage Unit Device Seismic Detector Storage Small Storage Unit Protection Makeshift Light Armor Plating Weapon Small Laser Energy Gun Small Laser Ballistic Gun Light Assault Rifle Special Weapon Mining Laser Build | -11 -10 -10 ------- Run | Yrd Mat Sub Slots Evolved . | . . . Power . | . . . Propulsion . | . . . Utility . | . . . Weapon . | . . . Parts Attached 25 | 7 13 5 Power 5 | 1 4 . Engine 5 | 1 4 . Core . | . . . Reactor . | . . . Propulsion 7 | 2 3 2 Treads . | . . . Leg 6 | 2 3 1 Wheel 1 | . . 1 Hover . | . . . Flight . | . . . Utility 3 | 2 . 1 Device 1 | 1 . . Storage 1 | 1 . . Processor . | . . . Hackware . | . . . Protection 1 | . . 1 Artifact . | . . . Weapon 10 | 2 6 2 Energy Gun 3 | 2 1 . Energy Cannon . | . . . Ballistic Gun 5 | . 4 1 Ballistic Cannon . | . . . Launcher . | . . . Special Weapon 2 | . 1 1 Impact Weapon . | . . . Slashing Weapon . | . . . Piercing Weapon . | . . . Special Melee Weapon . | . . . Unidentified Prototypes . | . . . Parts Lost 12 | . 5 7 Power 3 | . 2 1 Propulsion 4 | . 1 3 Utility . | . . . Weapon 5 | . 2 3 Highest Loss Streak 3 | . 3 3 To Critical Strikes . | . . . Average Slot Usage (%) 91 | . 94 76 Engine 11 | . 13 1 Leg 22 | . 23 18 Wheel 1 | . . 7 Device 12 | . 14 3 Storage 14 | . 14 14 Protection 1 | . . 10 Energy Gun 14 | . 18 . Ballistic Gun 10 | . 9 17 Special Weapon 1 | . . 3 Peak Build Rating 9 | 7 7 9 Average Rating 6 | 4 6 7 On Entrance 4 | . 7 7 Naked Turns . | . . . Heaviest Build 13 | 13 13 13 Greatest Support 20 | 20 20 20 Greatest Overweight (x) 3 | 3 1 1 Average Overweight (x) . | . . . Largest Inventory Capacity 8 | 8 8 8 Average Capacity 7 | 7 8 8 Most Carried 5 | 4 5 5 Average Carried 4 | 2 4 3 Final Capacity 8 | 8 8 8 Final Carried 5 | 4 5 2 Class Distribution -------------------- 80% | Mutant 19% | Scavenger-Mutant Dominant Class ---------------- Mutant | -10/Materials Mutant | -10/Subcaves Resources | -11 -10 -10 ----------- Run | Yrd Mat Sub Matter Collected 431 | 211 220 . Remotely . | . . . Salvage Created 507 | 39 468 . Parts 33 | 6 27 . Haulers Intercepted . | . . . Recyclers Shooed 1 | . 1 . Parts Field Recycled . | . . . Retrieved Matter . | . . . Parts Self-Destructed 4 | . . 4 Prevented . | . . . Kills | -11 -10 -10 ------- Run | Yrd Mat Sub Combat Hostiles Destroyed 13 | . 13 . Guns 13 | . 13 . Classes Destroyed 5 | 1 4 . Tunneler 2 | 2 . . Operator 1 | . 1 . Watcher 1 | . 1 . Swarmer 5 | . 5 . Grunt 8 | . 8 . Best Kill Streak 4 | 2 4 . Combat Bots Only 3 | . 3 . Max Kills in Single Turn 1 | 1 1 . Gunslinging . | . . . Exploded . | . . . Melee . | . . . Uniques/NPCs Destroyed . | . . . Combat | -11 -10 -10 -------- Run | Yrd Mat Sub Hostile Shots Fired 139 | . 113 26 Missed 47 | . 37 10 Damage Taken 1309 | . 921 388 Core 263 | . 182 81 Absorbed by Shields . | . . . Core Remaining (%) 100 | 100 . . Volleys Fired 76 | 2 67 7 Largest 2 | 2 2 2 Hottest 120 | 80 100 120 Shots Fired 143 | 4 126 13 Gun 129 | 4 119 6 Cannon . | . . . Launcher . | . . . Special 14 | . 7 7 Kinetic 40 | . 34 6 Thermal 103 | 4 92 7 Explosive . | . . . Electromagnetic . | . . . Robot Hit Streak 8 | 3 8 . Robot Miss Streak 8 | . 8 . Penetration Max . | . . . Secondary Targets 3 | . 3 . Max Gunslinging Chain 1 | . 1 . Shots Hit Robots 71 | 3 68 . Core Hits 31 | 2 29 . Critical Kills . | . . . Critical Parts Destroyed . | . . . Critical Strikes . | . . . Melee Attacks . | . . . Impact . | . . . Slashing . | . . . Piercing . | . . . Sneak Attacks . | . . . Combat Hostiles . | . . . Follow-up Attacks . | . . . Damage Inflicted 774 | 30 744 . Guns 772 | 30 742 . Cannons . | . . . Explosions . | . . . Melee . | . . . Ramming 2 | . 2 . Kinetic 127 | . 127 . Thermal 645 | 30 615 . Explosive . | . . . Electromagnetic . | . . . Impact . | . . . Slashing . | . . . Piercing . | . . . Highest Corruption . | . . . Average Corruption . | . . . Corruption Purged . | . . . Corruption Blocked . | . . . Overload Shots . | . . . Overflow Damage . | . . . Projectiles . | . . . Explosions . | . . . Melee . | . . . Knockbacks . | . . . Impact . | . . . Kinetic . | . . . Secondary . | . . . Self-Inflicted Damage . | . . . Shots . | . . . Rammed . | . . . Targets Rammed 2 | . 2 . Kicked 2 | . 2 . Crushed . | . . . Highest Temperature 278 | 36 278 . Average Temperature 66 | 20 68 . Received Heat Transfer 333 | . 333 . Siege Activations . | . . . Robots Corrupted . | . . . Combat Hostiles . | . . . Parts Fried . | . . . Impact Corruptions . | . . . Robots Melted . | . . . Combat Hostiles . | . . . Parts Melted 3 | 1 2 . Heat Transferred 1450 | 75 1375 . Parts Sabotaged . | . . . Parts Stolen . | . . . Parts Stripped . | . . . Power Chain Reactions . | . . . Alert | -11 -10 -10 ------- Run | Yrd Mat Sub Peak Influence 146 | 10 146 . Initial 6 | . 6 . Average 45 | 2 48 . Maximum Alert Level . | . . . Low Security (%) 100 | 100 100 . Level 1 . | . . . Level 2 . | . . . Level 3 . | . . . Level 4 . | . . . Level 5 . | . . . High Security . | . . . Max Security . | . . . Squads Dispatched 3 | . 3 . Investigation 1 | . 1 . Extermination . | . . . Reinforcement 2 | . 2 . Assault . | . . . Garrison . | . . . Intercept . | . . . Searches Triggered . | . . . Construction Impeded . | . . . Haulers Reinforced . | . . . Active Scanning Responses . | . . . Cargo Convoy Interrupts . | . . . Stealth | -11 -10 -10 --------- Run | Yrd Mat Sub Distress Signals 3 | . 3 . Communications Jammed . | . . . Distress Signals . | . . . Times Spotted 27 | . 23 4 Peak Tracking Total 4 | . 4 2 Tactical Retreats 1 | . . 1 Traps | -11 -10 -10 ------- Run | Yrd Mat Sub Traps Triggered 4 | . 3 1 Indirectly . | . . . Trap Hack Attempts . | . . . Triggered . | . . . Disarmed . | . . . Reprogrammed . | . . . Reused . | . . . Traps Extracted . | . . . Installed . | . . . Triggered . | . . . Machines | -11 -10 -10 ---------- Run | Yrd Mat Sub Machines Disabled . | . . . Max in Single Turn . | . . . Machines Repaired . | . . . Machines Dismantled . | . . . Machines Sabotaged . | . . . Overloaded Fab Kills . | . . . Hacking | -11 -10 -10 --------- Run | Yrd Mat Sub Machines Accessed 4 | . 4 . Terminals 3 | . 3 . Fabricators . | . . . Repair Stations . | . . . Recycling Units 1 | . 1 . Scanalyzers . | . . . Garrison Access . | . . . Total Hacks 9 | . 9 . Successful 3 | . 3 . Failed 6 | . 6 . Catastrophic 1 | . 1 . Database Lockouts . | . . . Manual 7 | . 7 . Terminals 7 | . 7 . Fabricators . | . . . Repair Stations . | . . . Recycling Units 2 | . 2 . Scanalyzers . | . . . Garrison Access . | . . . Terminal Hacks 1 | . 1 . Branch Access Points 1 | . 1 . Fabricator Hacks . | . . . Repair Station Hacks . | . . . Recycling Unit Hacks . | . . . Scanalyzer . | . . . Garrison Access Hacks . | . . . Unauthorized Hacks 1 | . 1 . Terminals 1 | . 1 . Botnet 1 | . 1 . Fabricators . | . . . Repair Stations . | . . . Recycling Units . | . . . Scanalyzers . | . . . Garrison Access . | . . . Data Cores Recovered . | . . . Used . | . . . Hacking Detections 4 | . 4 . Full Trace Events . | . . . Feedback Events . | . . . Feedback Blocked . | . . . Robot Schematics Acquired . | . . . Robots Built . | . . . Authchips . | . . . Time . | . . . Total Robot Build Rating . | . . . Part Schematics Acquired . | . . . Parts Built . | . . . Authchips . | . . . Time . | . . . Total Part Build Rating . | . . . Parts Repaired . | . . . Time . | . . . Parts Recycled . | . . . Recycled Matter . | . . . Retrieved Matter . | . . . Retrieved Components . | . . . Parts Scanalyzed . | . . . Part Schematics Acquired . | . . . Parts Damaged . | . . . Bothacking | -11 -10 -10 ------------ Run | Yrd Mat Sub Used RIF Installer . | . . . Robots Hacked . | . . . Non-combat . | . . . Combat . | . . . Robot Hacks Applied . | . . . Relay Couplers Released . | . . . Fabnet Peak Effective % . | . . . Robots Rewired . | . . . Allies Hacked . | . . . Hacks Repelled . | . . . Allies | -11 -10 -10 -------- Run | Yrd Mat Sub Total Allies . | . . . Largest Group . | . . . Highest-Rated Group . | . . . Highest-Rated Ally . | . . . Total Orders . | . . . Ally Attacks . | . . . Total Damage . | . . . Kills . | . . . Allies Corrupted . | . . . Allies Melted . | . . . Intel | -11 -10 -10 ------- Run | Yrd Mat Sub Robot Analysis Total . | . . . Derelict Logs Recovered . | . . . Drone Launches . | . . . Drone Recoveries . | . . . Exploration | -11 -10 -10 ------------- Run | Yrd Mat Sub Turns Passed 1316 | 67 1019 230 Spaces Moved 786 | 39 558 189 Core 16 | 16 . . Treads . | . . . Legs 664 | 23 558 83 Wheels 106 | . . 106 Hover . | . . . Flight . | . . . Fastest Speed 50 | 50 120 80 Average Speed 124 | 121 133 98 Slowest Speed 200 | 200 190 120 Overloaded Moves . | . . . Propulsion Burnouts . | . . . Robots Hopped . | . . . Cave-ins Triggered . | . . . Exploration Rate (%) 41 | 4 93 27 Regions Visited 2 Branch Regions 1 Pre-discovered Areas . | . . . Known Exits Taken . | . . . Unknown Exits Taken 2 | 1 1 . Scrap Searched . | . . . Spaces Dug 3 | . 3 . Terrain Destroyed 3 | . 3 . Melee . | . . . Projectile 3 | . 3 . AOE . | . . . Terrain Rammed . | . . . Walls Destroyed . | . . . Machines Disabled . | . . . Actions | -11 -10 -10 --------- Run | Yrd Mat Sub Total 950 | 51 693 206 Wait 56 | . 52 4 Move 784 | 38 557 189 Hop . | . . . Pick Up 6 | 4 2 . Fast Attach 15 | 7 6 2 Attach 6 | . 3 3 Detach . | . . . Swap 4 | . 4 . Drop 1 | . . 1 Fire 76 | 2 67 7 Melee . | . . . Ram . | . . . Kick 2 | . 2 . Crush . | . . . Escape Stasis . | . . . Rewire . | . . . Trap . | . . . Miscellaneous . | . . . Route ------- -11/Scrapyard -10/Materials (discovered 6 exits: [*Mat x3] / *Min x2 / [*Sub]) -10/Subcaves (discovered 1 exit: [*Mat]) History --------- Turn | Location | Event 24 | -11/Scrapyard | Discovered new exit (range 15) 68 | -11/Scrapyard | Entered Materials 270 | -10/Materials | Discovered new exit (range 7) 307 | -10/Materials | Build established: Mutant 400 | -10/Materials | Discovered new exit (range 6) 501 | -10/Materials | Discovered new exit (range 6) 756 | -10/Materials | Lost 3 parts (1p2w) 879 | -10/Materials | Identified exit to Mines 956 | -10/Materials | Core integrity fell below 50% 989 | -10/Materials | Discovered new exit (range 9) 1068 | -10/Materials | Derelicts attacked the area 1079 | -10/Materials | Discovered new exit (range 6) 1087 | -10/Materials | Entered Subcaves 1087 | -10/Subcaves | Discovered new exit (range 13) 1133 | -10/Subcaves | Shifting Twisted Machinery released Mak. Light Armor Plating 1137 | -10/Subcaves | Shifting Twisted Machinery released Riot Gun 1283 | -10/Subcaves | Core integrity fell below 20% 1297 | -10/Subcaves | A swath of the cavern ceiling suddenly collapsed 1317 | -10/Subcaves | Destroyed by PQ-VHF(R) with Subdweller Machine Gun Last Messages --------------- Mak. Light Armor Plating falls loose from the Twisted Machinery. Riot Gun falls loose from the Twisted Machinery. 01141_ Dropped Seismic Detector. 01142_ Acquired Mak. Light Armor Plating. 01150_ Subatomizers dissect the Seismic Detector. 01153_ Lgt. Assault Rifle destroyed. 01187_ Aluminum Leg destroyed. 01191_ Triggered Shrapnel Trap. 01191_ An expanding cloud of shrapnel blasts out in all directions. 01267_ 3Y-Q25(u) builds Twisted Machinery. 01290_ Aluminum Leg destroyed. 01290_ GW-4K5(u) builds Twisted Machinery. A swath of the cavern ceiling suddenly collapses. 01300_ Lgt. Assault Rifle destroyed. 01306_ Mining Laser destroyed. 01315_ Acquired Sub. Machine Gun. Map ----- +----------------------------------------------------+ | ##### ##????????? ?????????????????? | | ##?## #???????? #?????????????????? | | #?## ###???????? #??????????????????? | | ##?# "#######???? ""#???????????????????? | | #???# #### """"" ##### "#???????????????????? | | ????##???## """"" ## """#???????????????????? | | ??????????# "" ## ""#????????????????????? | | ??????????# """"" ## ""###??????????????????? | | ??????????## ### """"##?????????????????? | | ???????????####?#### """"##????????????????? | | ????????????????#??## %" "" ???????????????? | | ???????????????## ??# ### ""???????????????? | | ???????????????# ## #####????????????????????? | | ????????????????# "" ##????????????????????????? | | ????????????????##" ###??????????????????????? | | ?????????????????#" """"#??????????????????????? | | ?????????????????#" #""##??????????????????????? | | ?????????????????### ### #???????????????????????? | | ??????????????????# #?#;"###?????????????????????? | | ?????????????????? ?##;"#;??????????????????????? | | ?????????????????# ?#"R##;#?????????????????????? | | ?????????????????# ?#""#R;#??????????????????????? | | ?????????????????#??####;;##?????????????????????? | | ???????????????????????#; ;##????????????????????? | | ???????????????????#####;;;#?????????????????????? | | ???????????????????#;;;;;@;#?????????????????????? | | ???????????????????##;####;#?????????????????????? | | ????????????????????#????###?????????????????????? | | ???????????????????????????#?????????????????????? | | ?????????????????????????????????????????????????? | | ?????????????????????????????????????????????????? | | ?????????????????????????????????????????????????? | | ?????????????????????????????????????????????????? | | ?????????????????????????????????????????????????? | | ?????????????????????????????????????????????????? | | ?????????????????????????????????????????????????? | | ?????????????????????????????????????????????????? | | ?????????????????????????????????????????????????? | | ?????????????????????????????????????????????????? | | ?????????????????????????????????????????????????? | | ?????????????????????????????????????????????????? | | ?????????????????????????????????????????????????? | | ?????????????????????????????????????????????????? | | ?????????????????????????????????????????????????? | | ?????????????????????????????????????????????????? | | ?????????????????????????????????????????????????? | | ?????????????????????????????????????????????????? | | ?????????????????????????????????????????????????? | | ?????????????????????????????????????????????????? | | ?????????????????????????????????????????????????? | +----------------------------------------------------+ Best States ------------- Heat Dissipation 25 Energy Generation 10 Energy Capacity 250 Matter Stores 300 Matter Capacity 300 Sight Range 16 Terrain Scan Density 10 Armor Coverage 100 Evasion (%) 55 Item Schematics ----------------- None Robot Schematics ------------------ None Fabricated ------------ Nothing Alien Tech Used ----------------- None Achievements -------------- None Challenges ------------ None Game ------ Seed FluxSensorArticulator Manual? 0 Play Time 00:09:18 Cumulative 53.7 hours Start 2024.08.09 @ 20:18:42 End 2024.08.09 @ 20:27:58 Sessions 1 Manual Loads 0 Difficulty Rogue Special Mode None Game No. 157 Rogue 155 Adventurer 2 Explorer 0 Win Type - Total 0 Types 0/0/0/0/0/0/0/0/0 Lore% 36 Gallery% 47 Achievement% 37 Wizard Run 0 Options --------- Layout 2 ASCII 0 Keyboard 0 Movement Arrows Keybinds 0 Fullscreen 2 Font 24/Smallcaps Map View 50x44 Zoom Use 0% Tactical HUD 1 Map Filters NONE Filters NONE Steam 1 RUN: 182319a6-1c22-4875-b806-55443e15b09e